[Event "Titled Tuesday Blitz May 18 2021"]
[White "Murzin, Volodar"]
[Black "Martinez Alcantara, Jose Eduardo"]
[WhiteFideId "44155573"]
[BlackFideId "3805662"]
[WhiteElo "2541"]
[BlackElo "2690"]
[Result "1-0"]
[Round "06"]
[TimeControl "180+1"]
[Date "2021.05.18"]
[WhiteClock "0:00:10"]
[BlackClock "0:00:08"]

1. e4 {[%clk 0:03:00]}  e5 {[%clk 0:02:59]} 2. Nf3 {[%clk 0:03:01]}  Nc6 {[%clk 0:03:00]} 3. Bb5 {[%clk 0:03:01]}  a6 {[%clk 0:03:00]} 4. Ba4 {[%clk 0:03:01]}  Nf6 {[%clk 0:03:01]} 5. O-O {[%clk 0:03:00]}  Nxe4 {[%clk 0:03:01]} 6. d4 {[%clk 0:03:00]}  Be7 {[%clk 0:03:02]} 7. Re1 {[%clk 0:02:55]}  b5 {[%clk 0:03:02]} 8. Rxe4 {[%clk 0:02:52]}  d5 {[%clk 0:03:02]} 9. Nxe5 {[%clk 0:02:52]}  Nxe5 {[%clk 0:03:03]} 10. Rxe5 {[%clk 0:02:53]}  bxa4 {[%clk 0:03:03]} 11. b3 {[%clk 0:02:52]}  O-O {[%clk 0:03:03]} 12. Ba3 {[%clk 0:02:50]}  Bxa3 {[%clk 0:03:03]} 13. Nxa3 {[%clk 0:02:51]}  Re8 {[%clk 0:03:04]} 14. Qe1 {[%clk 0:02:46]}  Bf5 {[%clk 0:02:54]} 15. Qa5 {[%clk 0:02:32]}  Rxe5 {[%clk 0:02:40]} 16. dxe5 {[%clk 0:02:33]}  Qe7 {[%clk 0:02:40]} 17. Qxd5 {[%clk 0:02:18]}  Rd8 {[%clk 0:02:40]} 18. Qf3 {[%clk 0:02:17]}  Qxa3 {[%clk 0:01:39]} 19. Qxf5 {[%clk 0:02:17]}  Qxa2 {[%clk 0:01:40]} 20. Re1 {[%clk 0:02:16]}  g6 {[%clk 0:01:40]} 21. Qf6 {[%clk 0:02:09]}  Re8 {[%clk 0:01:38]} 22. Qc6 {[%clk 0:02:08]}  Rxe5 {[%clk 0:01:30]} 23. Rf1 {[%clk 0:01:56]}  axb3 {[%clk 0:01:27]} 24. Qxc7 {[%clk 0:01:53]}  Re8 {[%clk 0:00:56]} 25. Qc6 {[%clk 0:01:50]}  Rb8 {[%clk 0:00:40]} 26. Qd6 {[%clk 0:01:42]}  Ra8 {[%clk 0:00:30]} 27. Qc6 {[%clk 0:01:37]}  Rb8 {[%clk 0:00:28]} 28. Qd6 {[%clk 0:01:37]}  Rc8 {[%clk 0:00:25]} 29. cxb3 {[%clk 0:01:36]}  a5 {[%clk 0:00:24]} 30. Qb6 {[%clk 0:01:31]}  Qd2 {[%clk 0:00:18]} 31. g3 {[%clk 0:01:08]}  Qb4 {[%clk 0:00:18]} 32. Qxb4 {[%clk 0:00:36]}  axb4 {[%clk 0:00:19]} 33. Re1 {[%clk 0:00:37]}  Rc3 {[%clk 0:00:19]} 34. Re3 {[%clk 0:00:37]}  Kg7 {[%clk 0:00:11]} 35. Kf1 {[%clk 0:00:36]}  Rc1+ {[%clk 0:00:03]} 36. Re1 {[%clk 0:00:22]}  Rc3 {[%clk 0:00:02]} 37. Re3 {[%clk 0:00:22]}  Rc1+ {[%clk 0:00:03]} 38. Re1 {[%clk 0:00:22]}  Rxe1+ {[%clk 0:00:03]} 39. Kxe1 {[%clk 0:00:22]}  Kf6 {[%clk 0:00:04]} 40. Ke2 {[%clk 0:00:23]}  Kf5 {[%clk 0:00:04]} 41. Kd3 {[%clk 0:00:17]}  Kg4 {[%clk 0:00:03]} 42. Kc4 {[%clk 0:00:17]}  Kf3 {[%clk 0:00:01]} 43. Kxb4 {[%clk 0:00:18]}  Kxf2 {[%clk 0:00:02]} 44. Kc3 {[%clk 0:00:17]}  f5 {[%clk 0:00:03]} 45. b4 {[%clk 0:00:18]}  g5 {[%clk 0:00:04]} 46. b5 {[%clk 0:00:18]}  f4 {[%clk 0:00:05]} 47. gxf4 {[%clk 0:00:18]}  gxf4 {[%clk 0:00:05]} 48. b6 {[%clk 0:00:19]}  f3 {[%clk 0:00:06]} 49. b7 {[%clk 0:00:20]}  Ke2 {[%clk 0:00:07]} 50. b8=Q {[%clk 0:00:20]}  f2 {[%clk 0:00:08]} 51. Qe5+ {[%clk 0:00:20]}  Kf3 {[%clk 0:00:08]} 52. Qf5+ {[%clk 0:00:19]}  Ke2 {[%clk 0:00:07]} 53. Qe4+ {[%clk 0:00:18]}  Kd1 {[%clk 0:00:08]} 54. Qf3+ {[%clk 0:00:15]}  Ke1 {[%clk 0:00:08]} 55. Qe3+ {[%clk 0:00:15]}  Kf1 {[%clk 0:00:08]} 56. Kd2 {[%clk 0:00:12]}  h5 {[%clk 0:00:09]} 57. Qh3+ {[%clk 0:00:11]}  Kg1 {[%clk 0:00:09]} 58. Qg3+ {[%clk 0:00:11]}  Kh1 {[%clk 0:00:07]} 59. Qxf2 {[%clk 0:00:10]}  h4 {[%clk 0:00:08]} 60. Qxh4 {[%clk 0:00:10]} 1-0


[Site "https://www.chess.com"]

[Event "Titled Tuesday Blitz May 18 2021"]
[White "Postny, Evgeny"]
[Black "Triapishko, Alexandr"]
[WhiteFideId "2804344"]
[BlackFideId "14122286"]
[WhiteElo "2537"]
[BlackElo "2490"]
[Result "1-0"]
[Round "06"]
[TimeControl "180+1"]
[Date "2021.05.18"]
[WhiteClock "0:01:00"]
[BlackClock "0:00:02"]

1. d4 {[%clk 0:03:00]}  Nf6 {[%clk 0:02:58]} 2. Nf3 {[%clk 0:03:01]}  e6 {[%clk 0:02:58]} 3. c4 {[%clk 0:03:00]}  d5 {[%clk 0:02:58]} 4. Bg5 {[%clk 0:02:59]}  Bb4+ {[%clk 0:02:55]} 5. Nc3 {[%clk 0:02:58]}  h6 {[%clk 0:02:52]} 6. Bxf6 {[%clk 0:02:57]}  Qxf6 {[%clk 0:02:53]} 7. Qa4+ {[%clk 0:02:52]}  Nc6 {[%clk 0:02:53]} 8. e3 {[%clk 0:02:52]}  O-O {[%clk 0:02:49]} 9. Rc1 {[%clk 0:02:51]}  dxc4 {[%clk 0:02:05]} 10. Bxc4 {[%clk 0:02:50]}  Bd7 {[%clk 0:02:03]} 11. Qc2 {[%clk 0:02:45]}  Bd6 {[%clk 0:01:49]} 12. O-O {[%clk 0:02:37]}  a6 {[%clk 0:01:35]} 13. Ne4 {[%clk 0:02:33]}  Qe7 {[%clk 0:01:34]} 14. a3 {[%clk 0:02:26]}  Rac8 {[%clk 0:01:18]} 15. Ba2 {[%clk 0:02:19]}  Rfd8 {[%clk 0:00:58]} 16. Rfd1 {[%clk 0:02:11]}  Nb8 {[%clk 0:00:53]} 17. Bb1 {[%clk 0:01:59]}  f5 {[%clk 0:00:42]} 18. Nc5 {[%clk 0:01:51]}  Bc6 {[%clk 0:00:16]} 19. Ba2 {[%clk 0:01:33]}  Bxf3 {[%clk 0:00:11]} 20. gxf3 {[%clk 0:01:20]}  Qg5+ {[%clk 0:00:03]} 21. Kf1 {[%clk 0:01:20]}  Qh5 {[%clk 0:00:02]} 22. Bxe6+ {[%clk 0:01:16]}  Kh8 {[%clk 0:00:02]} 23. Qxf5 {[%clk 0:01:13]}  Qxh2 {[%clk 0:00:01]} 24. Bxc8 {[%clk 0:01:03]}  Rf8 {[%clk 0:00:02]} 25. Qh3 {[%clk 0:01:00]} 1-0


[Site "https://www.chess.com"]

[Event "Titled Tuesday Blitz May 18 2021"]
[White "Praggnanandhaa R"]
[Black "Sarana, Alexey"]
[WhiteFideId "25059530"]
[BlackFideId "24133795"]
[WhiteElo "2555"]
[BlackElo "2629"]
[Result "0-1"]
[Round "06"]
[TimeControl "180+1"]
[Date "2021.05.18"]
[WhiteClock "0:00:01"]
[BlackClock "0:00:04"]

1. d4 {[%clk 0:03:00]}  Nf6 {[%clk 0:02:59]} 2. Nf3 {[%clk 0:02:59]}  d5 {[%clk 0:02:59]} 3. Bf4 {[%clk 0:02:57]}  c5 {[%clk 0:02:57]} 4. e3 {[%clk 0:02:57]}  Nc6 {[%clk 0:02:56]} 5. Nbd2 {[%clk 0:02:57]}  Qb6 {[%clk 0:02:56]} 6. dxc5 {[%clk 0:02:56]}  Qxb2 {[%clk 0:02:56]} 7. Rb1 {[%clk 0:02:56]}  Qa3 {[%clk 0:02:56]} 8. c4 {[%clk 0:02:41]}  e6 {[%clk 0:02:28]} 9. Nd4 {[%clk 0:02:18]}  a6 {[%clk 0:02:11]} 10. N4b3 {[%clk 0:01:31]}  Bxc5 {[%clk 0:01:56]} 11. Nxc5 {[%clk 0:01:26]}  Qxc5 {[%clk 0:01:57]} 12. Be2 {[%clk 0:01:26]}  O-O {[%clk 0:01:56]} 13. O-O {[%clk 0:01:25]}  Rd8 {[%clk 0:01:53]} 14. Qc1 {[%clk 0:01:20]}  h6 {[%clk 0:01:45]} 15. Bg3 {[%clk 0:01:11]}  d4 {[%clk 0:01:37]} 16. Nb3 {[%clk 0:01:09]}  Qf5 {[%clk 0:01:35]} 17. exd4 {[%clk 0:01:03]}  Nxd4 {[%clk 0:01:35]} 18. Nxd4 {[%clk 0:01:03]}  Rxd4 {[%clk 0:01:35]} 19. Bf3 {[%clk 0:01:03]}  e5 {[%clk 0:01:31]} 20. Rd1 {[%clk 0:00:54]}  Rxd1+ {[%clk 0:00:51]} 21. Qxd1 {[%clk 0:00:54]}  e4 {[%clk 0:00:50]} 22. Qd8+ {[%clk 0:00:54]}  Kh7 {[%clk 0:00:51]} 23. Be2 {[%clk 0:00:53]}  b5 {[%clk 0:00:51]} 24. cxb5 {[%clk 0:00:45]}  axb5 {[%clk 0:00:50]} 25. Rxb5 {[%clk 0:00:37]}  Qe6 {[%clk 0:00:44]} 26. h3 {[%clk 0:00:23]}  Rxa2 {[%clk 0:00:40]} 27. Re5 {[%clk 0:00:23]}  Qc6 {[%clk 0:00:28]} 28. Qd1 {[%clk 0:00:19]}  Qc3 {[%clk 0:00:23]} 29. Kh2 {[%clk 0:00:19]}  Ra1 {[%clk 0:00:22]} 30. Rc5 {[%clk 0:00:16]}  Qb2 {[%clk 0:00:13]} 31. Qc2 {[%clk 0:00:12]}  Qxc2 {[%clk 0:00:12]} 32. Rxc2 {[%clk 0:00:13]}  Bf5 {[%clk 0:00:12]} 33. Be5 {[%clk 0:00:13]}  Ra5 {[%clk 0:00:12]} 34. Bxf6 {[%clk 0:00:10]}  gxf6 {[%clk 0:00:13]} 35. Rc7 {[%clk 0:00:10]}  Kg7 {[%clk 0:00:12]} 36. Rc3 {[%clk 0:00:08]}  Bg6 {[%clk 0:00:11]} 37. g4 {[%clk 0:00:08]}  Ra2 {[%clk 0:00:11]} 38. Re3 {[%clk 0:00:07]}  f5 {[%clk 0:00:12]} 39. Kg3 {[%clk 0:00:08]}  Kf6 {[%clk 0:00:11]} 40. Kf4 {[%clk 0:00:08]}  Ra5 {[%clk 0:00:09]} 41. Rb3 {[%clk 0:00:07]}  Ra2 {[%clk 0:00:07]} 42. Rb6+ {[%clk 0:00:06]}  Kg7 {[%clk 0:00:07]} 43. gxf5 {[%clk 0:00:07]}  Rxe2 {[%clk 0:00:07]} 44. fxg6 {[%clk 0:00:07]}  Rxf2+ {[%clk 0:00:07]} 45. Kxe4 {[%clk 0:00:06]}  f6 {[%clk 0:00:07]} 46. Rb3 {[%clk 0:00:03]}  Kxg6 {[%clk 0:00:07]} 47. Rg3+ {[%clk 0:00:03]}  Kh5 {[%clk 0:00:07]} 48. Ke3 {[%clk 0:00:03]}  Rf5 {[%clk 0:00:07]} 49. Ke4 {[%clk 0:00:03]}  Rf1 {[%clk 0:00:06]} 50. Ke3 {[%clk 0:00:02]}  Kh4 {[%clk 0:00:06]} 51. Rg6 {[%clk 0:00:03]}  h5 {[%clk 0:00:07]} 52. Ke2 {[%clk 0:00:02]}  Rf5 {[%clk 0:00:06]} 53. Ke3 {[%clk 0:00:02]}  Kxh3 {[%clk 0:00:06]} 54. Rg7 {[%clk 0:00:02]}  h4 {[%clk 0:00:06]} 55. Rg6 {[%clk 0:00:02]}  Kh2 {[%clk 0:00:06]} 56. Ke2 {[%clk 0:00:03]}  h3 {[%clk 0:00:06]} 57. Ke3 {[%clk 0:00:03]}  Kh1 {[%clk 0:00:05]} 58. Ke2 {[%clk 0:00:04]}  h2 {[%clk 0:00:05]} 59. Ke3 {[%clk 0:00:03]}  Rg5 {[%clk 0:00:06]} 60. Rxf6 {[%clk 0:00:02]}  Kg2 {[%clk 0:00:04]} 61. Rf2+ {[%clk 0:00:01]}  Kh3 {[%clk 0:00:05]} 62. Kf4 {[%clk 0:00:01]}  Rg4+ {[%clk 0:00:04]} 63. Kf3 {[%clk 0:00:01]}  h1=Q+ {[%clk 0:00:04]} 0-1


[Site "https://www.chess.com"]

[Event "Titled Tuesday Blitz May 18 2021"]
[White "Shipov, Sergei"]
[Black "Oparin, Grigoriy"]
[WhiteFideId "4113624"]
[BlackFideId "24125890"]
[WhiteElo "2765"]
[BlackElo "2628"]
[Result "1/2-1/2"]
[Round "06"]
[TimeControl "180+1"]
[Date "2021.05.18"]
[WhiteClock "0:00:20"]
[BlackClock "0:00:21"]

1. d4 {[%clk 0:03:00]}  d6 {[%clk 0:02:57]} 2. Nf3 {[%clk 0:03:00]}  Nf6 {[%clk 0:02:57]} 3. c4 {[%clk 0:02:59]}  Nbd7 {[%clk 0:02:57]} 4. Nc3 {[%clk 0:02:59]}  g6 {[%clk 0:02:57]} 5. e4 {[%clk 0:02:58]}  e5 {[%clk 0:02:56]} 6. Be2 {[%clk 0:02:49]}  Bg7 {[%clk 0:02:56]} 7. O-O {[%clk 0:02:47]}  O-O {[%clk 0:02:56]} 8. Be3 {[%clk 0:02:34]}  a5 {[%clk 0:02:51]} 9. dxe5 {[%clk 0:02:23]}  Nxe5 {[%clk 0:02:51]} 10. Nxe5 {[%clk 0:02:05]}  dxe5 {[%clk 0:02:52]} 11. Qxd8 {[%clk 0:02:03]}  Rxd8 {[%clk 0:02:53]} 12. Rfd1 {[%clk 0:02:04]}  Be6 {[%clk 0:02:46]} 13. f3 {[%clk 0:01:36]}  c6 {[%clk 0:02:35]} 14. Na4 {[%clk 0:01:33]}  Rxd1+ {[%clk 0:02:32]} 15. Rxd1 {[%clk 0:01:33]}  Nd7 {[%clk 0:02:33]} 16. b3 {[%clk 0:01:21]}  Bf8 {[%clk 0:02:31]} 17. Nb6 {[%clk 0:01:19]}  Nxb6 {[%clk 0:02:31]} 18. Bxb6 {[%clk 0:01:20]}  a4 {[%clk 0:02:13]} 19. Rd8 {[%clk 0:01:18]}  Rxd8 {[%clk 0:02:10]} 20. Bxd8 {[%clk 0:01:18]}  Bc5+ {[%clk 0:02:10]} 21. Kf1 {[%clk 0:01:18]}  axb3 {[%clk 0:02:00]} 22. axb3 {[%clk 0:01:17]}  f5 {[%clk 0:02:01]} 23. Bd3 {[%clk 0:01:08]}  Kf7 {[%clk 0:02:01]} 24. Ke2 {[%clk 0:01:08]}  h6 {[%clk 0:01:57]} 25. Bc7 {[%clk 0:00:55]}  Bd4 {[%clk 0:01:57]} 26. f4 {[%clk 0:00:52]}  fxe4 {[%clk 0:01:39]} 27. Bxe4 {[%clk 0:00:51]}  exf4 {[%clk 0:01:39]} 28. Bxf4 {[%clk 0:00:51]}  g5 {[%clk 0:01:40]} 29. Bd6 {[%clk 0:00:48]}  Kf6 {[%clk 0:01:39]} 30. g3 {[%clk 0:00:46]}  g4 {[%clk 0:01:21]} 31. Bf4 {[%clk 0:00:37]}  h5 {[%clk 0:01:21]} 32. Be3 {[%clk 0:00:37]}  Be5 {[%clk 0:00:53]} 33. Kd3 {[%clk 0:00:34]}  h4 {[%clk 0:00:32]} 34. gxh4 {[%clk 0:00:34]}  Bxh2 {[%clk 0:00:32]} 35. Bg5+ {[%clk 0:00:29]}  Kf7 {[%clk 0:00:32]} 36. h5 {[%clk 0:00:30]}  Be5 {[%clk 0:00:31]} 37. Ke3 {[%clk 0:00:25]}  b5 {[%clk 0:00:20]} 38. Bxc6 {[%clk 0:00:21]}  bxc4 {[%clk 0:00:20]} 39. bxc4 {[%clk 0:00:22]}  Bxc4 {[%clk 0:00:21]} 40. Ke4 {[%clk 0:00:20]} 1/2-1/2


[Site "https://www.chess.com"]

[Event "Titled Tuesday Blitz May 18 2021"]
[White "Sumets, Andrey"]
[Black "Naroditsky, Daniel"]
[WhiteFideId "14105500"]
[BlackFideId "2026961"]
[WhiteElo "2619"]
[BlackElo "2608"]
[Result "0-1"]
[Round "06"]
[TimeControl "180+1"]
[Date "2021.05.18"]
[WhiteClock "0:00:16"]
[BlackClock "0:00:48"]

1. d4 {[%clk 0:02:58]}  Nf6 {[%clk 0:03:00]} 2. c4 {[%clk 0:02:59]}  g6 {[%clk 0:03:00]} 3. Nc3 {[%clk 0:02:59]}  Bg7 {[%clk 0:03:01]} 4. e4 {[%clk 0:02:59]}  d6 {[%clk 0:03:02]} 5. Nf3 {[%clk 0:03:00]}  O-O {[%clk 0:03:02]} 6. Be2 {[%clk 0:03:00]}  c5 {[%clk 0:03:03]} 7. O-O {[%clk 0:02:54]}  Re8 {[%clk 0:03:03]} 8. Re1 {[%clk 0:02:42]}  cxd4 {[%clk 0:02:57]} 9. Nxd4 {[%clk 0:02:43]}  Nbd7 {[%clk 0:02:57]} 10. Be3 {[%clk 0:02:36]}  b6 {[%clk 0:02:54]} 11. Qd2 {[%clk 0:02:25]}  Bb7 {[%clk 0:02:54]} 12. f3 {[%clk 0:02:25]}  a6 {[%clk 0:02:54]} 13. a4 {[%clk 0:02:24]}  Rc8 {[%clk 0:02:42]} 14. a5 {[%clk 0:02:23]}  bxa5 {[%clk 0:02:43]} 15. Nb3 {[%clk 0:02:23]}  Ne5 {[%clk 0:02:36]} 16. Nxa5 {[%clk 0:02:23]}  Ba8 {[%clk 0:02:36]} 17. Nd5 {[%clk 0:02:10]}  e6 {[%clk 0:02:27]} 18. Nb6 {[%clk 0:02:05]}  Rb8 {[%clk 0:02:14]} 19. Nxa8 {[%clk 0:02:04]}  Nxe4 {[%clk 0:01:39]} 20. fxe4 {[%clk 0:01:53]}  Rxb2 {[%clk 0:01:38]} 21. Qc1 {[%clk 0:01:29]}  Qxa8 {[%clk 0:01:35]} 22. Bd4 {[%clk 0:00:56]}  Nd3 {[%clk 0:01:05]} 23. Qc3 {[%clk 0:00:27]}  Qxe4 {[%clk 0:00:49]} 24. Bxg7 {[%clk 0:00:25]}  Qe3+ {[%clk 0:00:48]} 25. Kh1 {[%clk 0:00:16]}  Nf2+ {[%clk 0:00:48]} 0-1


[Site "https://www.chess.com"]

[Event "Titled Tuesday Blitz May 18 2021"]
[White "Tari, Aryan"]
[Black "Remizov, Yaroslav"]
[WhiteFideId "1510045"]
[BlackFideId "34134015"]
[WhiteElo "2656"]
[BlackElo "2367"]
[Result "1-0"]
[Round "06"]
[TimeControl "180+1"]
[Date "2021.05.18"]
[WhiteClock "0:00:46"]
[BlackClock "0:00:27"]

1. d4 {[%clk 0:03:00]}  Nf6 {[%clk 0:02:59]} 2. Nf3 {[%clk 0:02:58]}  d5 {[%clk 0:02:58]} 3. Bf4 {[%clk 0:02:58]}  c5 {[%clk 0:02:58]} 4. e3 {[%clk 0:02:58]}  Nc6 {[%clk 0:02:58]} 5. Nbd2 {[%clk 0:02:59]}  Bf5 {[%clk 0:02:57]} 6. dxc5 {[%clk 0:02:58]}  e6 {[%clk 0:02:57]} 7. Nd4 {[%clk 0:02:52]}  Bg6 {[%clk 0:02:49]} 8. Bb5 {[%clk 0:02:51]}  Rc8 {[%clk 0:02:47]} 9. Nxc6 {[%clk 0:02:45]}  bxc6 {[%clk 0:02:42]} 10. Ba6 {[%clk 0:02:46]}  Bxc5 {[%clk 0:02:42]} 11. Bxc8 {[%clk 0:02:46]}  Qxc8 {[%clk 0:02:43]} 12. O-O {[%clk 0:02:34]}  O-O {[%clk 0:02:43]} 13. Nb3 {[%clk 0:02:21]}  Be7 {[%clk 0:02:42]} 14. Qe2 {[%clk 0:02:16]}  Rd8 {[%clk 0:02:34]} 15. h3 {[%clk 0:02:14]}  c5 {[%clk 0:02:34]} 16. Rfd1 {[%clk 0:01:43]}  c4 {[%clk 0:02:31]} 17. Nd4 {[%clk 0:01:43]}  Nd7 {[%clk 0:02:27]} 18. Bh2 {[%clk 0:01:37]}  Bf6 {[%clk 0:02:25]} 19. b3 {[%clk 0:01:15]}  Nb6 {[%clk 0:02:12]} 20. a4 {[%clk 0:01:10]}  e5 {[%clk 0:02:03]} 21. Nf3 {[%clk 0:01:07]}  cxb3 {[%clk 0:00:51]} 22. cxb3 {[%clk 0:01:08]}  Qc2 {[%clk 0:00:51]} 23. Qb5 {[%clk 0:00:46]}  e4 {[%clk 0:00:28]} 24. Nd4 {[%clk 0:00:47]}  Bh5 {[%clk 0:00:27]} 25. Nxc2 {[%clk 0:00:46]} 1-0


[Site "https://www.chess.com"]

[Event "Titled Tuesday Blitz May 18 2021"]
[White "ViditYT"]
[Black "Quintiliano Pinto, Renato R."]
[BlackFideId "2117568"]
[WhiteElo "2944"]
[BlackElo "2439"]
[Result "1-0"]
[Round "06"]
[TimeControl "180+1"]
[Date "2021.05.18"]
[WhiteClock "0:00:05"]
[BlackClock "0:00:03"]

1. Nf3 {[%clk 0:03:00]}  Nf6 {[%clk 0:02:59]} 2. g3 {[%clk 0:03:00]}  e6 {[%clk 0:02:59]} 3. Bg2 {[%clk 0:03:00]}  d5 {[%clk 0:03:00]} 4. O-O {[%clk 0:02:59]}  Be7 {[%clk 0:03:00]} 5. d3 {[%clk 0:02:58]}  O-O {[%clk 0:03:01]} 6. c4 {[%clk 0:02:55]}  b6 {[%clk 0:02:44]} 7. cxd5 {[%clk 0:02:53]}  exd5 {[%clk 0:02:43]} 8. d4 {[%clk 0:02:52]}  Bb7 {[%clk 0:02:37]} 9. Nc3 {[%clk 0:02:52]}  Nbd7 {[%clk 0:02:36]} 10. Bf4 {[%clk 0:02:53]}  Re8 {[%clk 0:02:33]} 11. Nb5 {[%clk 0:02:46]}  Rc8 {[%clk 0:02:06]} 12. Nxa7 {[%clk 0:02:45]}  Ra8 {[%clk 0:02:06]} 13. Nb5 {[%clk 0:02:42]}  Rc8 {[%clk 0:02:06]} 14. Rc1 {[%clk 0:02:37]}  c5 {[%clk 0:02:04]} 15. Re1 {[%clk 0:02:32]}  h6 {[%clk 0:01:53]} 16. h4 {[%clk 0:02:28]}  Nh5 {[%clk 0:01:27]} 17. Bd6 {[%clk 0:02:13]}  Ba6 {[%clk 0:01:11]} 18. Bxe7 {[%clk 0:02:12]}  Qxe7 {[%clk 0:01:12]} 19. Qa4 {[%clk 0:02:05]}  Bxb5 {[%clk 0:01:10]} 20. Qxb5 {[%clk 0:02:05]}  Ra8 {[%clk 0:01:07]} 21. a3 {[%clk 0:02:01]}  Nhf6 {[%clk 0:01:03]} 22. e3 {[%clk 0:01:54]}  Ne4 {[%clk 0:00:57]} 23. Bh3 {[%clk 0:01:44]}  Ndf6 {[%clk 0:00:54]} 24. Ne5 {[%clk 0:01:35]}  c4 {[%clk 0:00:45]} 25. Re2 {[%clk 0:01:18]}  Qc7 {[%clk 0:00:40]} 26. Bg2 {[%clk 0:01:12]}  Rxe5 {[%clk 0:00:33]} 27. dxe5 {[%clk 0:01:10]}  Qxe5 {[%clk 0:00:33]} 28. Qxb6 {[%clk 0:01:02]}  Rb8 {[%clk 0:00:23]} 29. Qd4 {[%clk 0:01:00]}  Qh5 {[%clk 0:00:22]} 30. Rec2 {[%clk 0:00:54]}  Nd6 {[%clk 0:00:17]} 31. Qf4 {[%clk 0:00:51]}  Rd8 {[%clk 0:00:15]} 32. Rd2 {[%clk 0:00:48]}  Nde4 {[%clk 0:00:09]} 33. Rd4 {[%clk 0:00:32]}  Nc5 {[%clk 0:00:09]} 34. Bf3 {[%clk 0:00:16]}  Qg6 {[%clk 0:00:09]} 35. Qc7 {[%clk 0:00:11]}  Ne6 {[%clk 0:00:09]} 36. Qb6 {[%clk 0:00:12]}  Qf5 {[%clk 0:00:08]} 37. Bg2 {[%clk 0:00:09]}  Qe5 {[%clk 0:00:08]} 38. Rcd1 {[%clk 0:00:08]}  Rb8 {[%clk 0:00:08]} 39. Qa7 {[%clk 0:00:04]}  Rxb2 {[%clk 0:00:08]} 40. R4d2 {[%clk 0:00:03]}  Rxd2 {[%clk 0:00:07]} 41. Rxd2 {[%clk 0:00:04]}  Qa1+ {[%clk 0:00:07]} 42. Bf1 {[%clk 0:00:04]}  Qc1 {[%clk 0:00:08]} 43. Re2 {[%clk 0:00:03]}  c3 {[%clk 0:00:07]} 44. Qb8+ {[%clk 0:00:03]}  Kh7 {[%clk 0:00:06]} 45. Qc8 {[%clk 0:00:04]}  Ne4 {[%clk 0:00:06]} 46. Kg2 {[%clk 0:00:04]}  Qb1 {[%clk 0:00:05]} 47. f3 {[%clk 0:00:04]}  Nd2 {[%clk 0:00:04]} 48. Rf2 {[%clk 0:00:04]}  c2 {[%clk 0:00:03]} 49. Bd3+ {[%clk 0:00:04]}  g6 {[%clk 0:00:03]} 50. Qxc2 {[%clk 0:00:05]} 1-0


[Site "https://www.chess.com"]

[Event "Titled Tuesday Blitz May 18 2021"]
[White "Zhigalko, Sergei"]
[Black "Nesterov, Arseniy"]
[WhiteFideId "13502956"]
[BlackFideId "24198455"]
[WhiteElo "2662"]
[BlackElo "2441"]
[Result "1-0"]
[Round "06"]
[TimeControl "180+1"]
[Date "2021.05.18"]
[WhiteClock "0:00:07"]
[BlackClock "0:00:06"]

1. e4 {[%clk 0:03:00]}  e5 {[%clk 0:03:00]} 2. Nf3 {[%clk 0:02:57]}  Nc6 {[%clk 0:03:00]} 3. Bc4 {[%clk 0:02:55]}  Bc5 {[%clk 0:03:00]} 4. O-O {[%clk 0:02:52]}  Nf6 {[%clk 0:02:59]} 5. d3 {[%clk 0:02:52]}  d6 {[%clk 0:02:59]} 6. c3 {[%clk 0:02:53]}  O-O {[%clk 0:02:59]} 7. Nbd2 {[%clk 0:02:53]}  a5 {[%clk 0:02:57]} 8. h3 {[%clk 0:02:48]}  Be6 {[%clk 0:02:53]} 9. Bb5 {[%clk 0:02:47]}  Bd7 {[%clk 0:02:51]} 10. Re1 {[%clk 0:02:42]}  a4 {[%clk 0:02:52]} 11. Nf1 {[%clk 0:02:31]}  Ne7 {[%clk 0:02:38]} 12. Bxd7 {[%clk 0:02:26]}  Nxd7 {[%clk 0:02:39]} 13. d4 {[%clk 0:02:24]}  Ba7 {[%clk 0:02:25]} 14. Ng3 {[%clk 0:02:15]}  b5 {[%clk 0:02:16]} 15. Be3 {[%clk 0:01:58]}  h6 {[%clk 0:01:58]} 16. Qd2 {[%clk 0:01:57]}  Kh7 {[%clk 0:01:52]} 17. Rad1 {[%clk 0:01:53]}  Nc6 {[%clk 0:01:19]} 18. Qd3 {[%clk 0:01:18]}  Rb8 {[%clk 0:01:15]} 19. d5 {[%clk 0:01:07]}  Bxe3 {[%clk 0:01:09]} 20. dxc6 {[%clk 0:01:07]}  Bxf2+ {[%clk 0:01:10]} 21. Kxf2 {[%clk 0:01:07]}  Nc5 {[%clk 0:01:11]} 22. Qd5 {[%clk 0:01:05]}  b4 {[%clk 0:01:07]} 23. c4 {[%clk 0:00:56]}  b3 {[%clk 0:00:55]} 24. a3 {[%clk 0:00:56]}  Rb6 {[%clk 0:00:54]} 25. Kg1 {[%clk 0:00:47]}  Qe8 {[%clk 0:00:51]} 26. Rf1 {[%clk 0:00:39]}  Rxc6 {[%clk 0:00:48]} 27. Nf5 {[%clk 0:00:32]}  Ne6 {[%clk 0:00:37]} 28. Rc1 {[%clk 0:00:22]}  Nf4 {[%clk 0:00:35]} 29. Qd2 {[%clk 0:00:22]}  Qe6 {[%clk 0:00:34]} 30. Ne3 {[%clk 0:00:22]}  Qg6 {[%clk 0:00:32]} 31. g3 {[%clk 0:00:12]}  Nxh3+ {[%clk 0:00:24]} 32. Kh2 {[%clk 0:00:10]}  Ng5 {[%clk 0:00:24]} 33. Nxg5+ {[%clk 0:00:10]}  Qxg5 {[%clk 0:00:25]} 34. Qd3 {[%clk 0:00:06]}  g6 {[%clk 0:00:21]} 35. Rf2 {[%clk 0:00:05]}  Kg7 {[%clk 0:00:17]} 36. Rcf1 {[%clk 0:00:05]}  Rc5 {[%clk 0:00:16]} 37. Kg2 {[%clk 0:00:05]}  h5 {[%clk 0:00:15]} 38. Nd5 {[%clk 0:00:04]}  h4 {[%clk 0:00:12]} 39. Nf6 {[%clk 0:00:03]}  Qxg3+ {[%clk 0:00:11]} 40. Qxg3 {[%clk 0:00:03]}  hxg3 {[%clk 0:00:12]} 41. Kxg3 {[%clk 0:00:03]}  Rxc4 {[%clk 0:00:13]} 42. Nd7 {[%clk 0:00:03]}  Rd8 {[%clk 0:00:06]} 43. Rxf7+ {[%clk 0:00:03]}  Kh6 {[%clk 0:00:07]} 44. Nf6 {[%clk 0:00:02]}  Rc2 {[%clk 0:00:02]} 45. Kg4 {[%clk 0:00:02]}  Rg2+ {[%clk 0:00:01]} 46. Kf3 {[%clk 0:00:02]}  Rg5 {[%clk 0:00:02]} 47. Rh1+ {[%clk 0:00:02]}  Rh5 {[%clk 0:00:03]} 48. Nxh5 {[%clk 0:00:03]}  gxh5 {[%clk 0:00:04]} 49. Rf5 {[%clk 0:00:03]}  Kg6 {[%clk 0:00:04]} 50. Rhxh5 {[%clk 0:00:03]}  d5 {[%clk 0:00:05]} 51. Rhg5+ {[%clk 0:00:04]}  Kh6 {[%clk 0:00:06]} 52. Rh5+ {[%clk 0:00:05]}  Kg6 {[%clk 0:00:06]} 53. exd5 {[%clk 0:00:05]}  Rxd5 {[%clk 0:00:06]} 54. Rhg5+ {[%clk 0:00:06]}  Kh6 {[%clk 0:00:06]} 55. Ke3 {[%clk 0:00:06]}  Rc5 {[%clk 0:00:06]} 56. Rh5+ {[%clk 0:00:07]}  Kg6 {[%clk 0:00:06]} 57. Rhg5+ {[%clk 0:00:07]}  Kh6 {[%clk 0:00:06]} 58. Rg2 {[%clk 0:00:07]}  c6 {[%clk 0:00:05]} 59. Rf1 {[%clk 0:00:06]}  e4 {[%clk 0:00:05]} 60. Rh1+ {[%clk 0:00:06]}  Rh5 {[%clk 0:00:06]} 61. Rxh5+ {[%clk 0:00:06]}  Kxh5 {[%clk 0:00:06]} 62. Kxe4 {[%clk 0:00:07]} 1-0


[Site "https://www.chess.com"]